fUSD/lending_fUSD_20250929
["ID","MTS","AMOUNT","RATE_DAILY","PERIOD"]
[388359725,1759121458594,-160.0,0.00019177,2]
[388359726,1759121458605,-429.865394,0.00019177,2]
[388359727,1759121458617,-432.169124,0.00019177,2]
[388359728,1759121458627,-160.0,0.00019177,2]
[388359729,1759121458639,-159.21001,0.00019177,2]
[388359730,1759121458650,-429.865394,0.00019177,2]
[388359731,1759121458662,-160.0,0.00019177,2]
[388359732,1759121458672,-482.968385,0.00019177,2]
[388359733,1759121458684,-159.21001,0.00019177,2]
[388359734,1759121458695,-429.865394,0.00019177,2]
[388359735,1759121458706,-160.0,0.00019177,2]
[388359736,1759121458716,-482.968385,0.00019177,2]
[388359737,1759121458727,-159.21001,0.00019177,2]
[388359738,1759121458743,-160.0,0.00019177,2]
[388359739,1759121458754,-432.169124,0.00019177,2]
[388359740,1759121458766,-482.968385,0.00019177,2]
[388359741,1759121458776,-160.0,0.00019177,2]
[388359742,1759121458787,-432.169124,0.00019177,2]
[388359743,1759121458799,-400.0,0.00019178,2]
[388359744,1759121458810,-280.4613987,0.00019178,3]
[388359745,1759121458821,-3011.3573084,0.00019178,2]
[388359746,1759121458832,-344.79909495,0.00019178,2]
[388359747,1759121458844,-151.0,0.00019178,2]
[388359748,1759121458854,-200.0,0.00019178,2]
[388359749,1759121458865,-5000.0,0.00019178,2]
[388359750,1759121458875,-151.0,0.00019178,2]
[388359751,1759121458886,-151.0,0.00019178,2]
[388359752,1759121458897,-151.0,0.00019178,2]
[388359753,1759121458908,-151.0,0.00019178,2]
[388359754,1759121458924,-151.0,0.00019178,2]
[388359755,1759121458936,-198.715686,0.00019178,2]
[388359756,1759121458947,-3348.38,0.00019178,2]
[388359757,1759121458958,-303.43,0.00019178,2]
[388359758,1759121458969,-4650.36425052,0.00019184,2]
[388359759,1759121458980,-155.0,0.00019192,2]
[388359760,1759121458991,-1000.0,0.000192,2]
[388359761,1759121459002,-1000.0,0.000192,2]
[388359762,1759121459013,-1000.0,0.000192,2]
[388359763,1759121459025,-1000.0,0.000192,2]
[388359764,1759121459036,-1000.0,0.000192,2]
[388359765,1759121459047,-1000.0,0.000192,2]
[388359766,1759121459058,-1000.0,0.000192,2]
[388359767,1759121459069,-1000.0,0.000192,2]
[388359768,1759121459080,-417.0,0.000192,2]
[388359769,1759121459091,-500.0,0.00019205,2]
[388359770,1759121459101,-911.35562488,0.00019214,2]
[388359771,1759121459113,-720.0,0.00019234,2]
[388359772,1759121459123,-223.9978244,0.0001926,2]
[388359773,1759121459135,-1680.0,0.00019265,2]
[388359774,1759121459353,-389.01923882,0.0001928,2]
[388359775,1759121459363,-151.0,0.00019291,2]
[388359776,1759121459373,-151.0,0.00019291,2]
[388359777,1759121459383,-151.0,0.00019291,2]
[388359778,1759121459393,-525.094891,0.00019291,2]
[388359779,1759121459402,-525.094891,0.00019291,2]
[388359780,1759121459412,-525.094891,0.00019291,2]
[388359781,1759121459422,-525.094894,0.00019291,2]
[388359782,1759121459432,-15401.10447127,0.00019291,2]
[388359783,1759121459441,-700.0,0.00019295,2]
[388359784,1759121459451,-206.47,0.000193,2]
[388359785,1759121459460,-151.0,0.000193,2]
[388359786,1759121459472,-151.232434,0.000193,2]
[388359787,1759121459482,-151.0,0.000193,2]
[388359788,1759121459492,-4650.36425052,0.00019303,2]
[388359789,1759121459502,-720.0,0.00019316,2]
[388359790,1759121459512,-151.0,0.00019337,2]
[388359791,1759121459522,-151.0,0.00019337,2]
[388359792,1759121459531,-151.0,0.00019337,2]
[388359793,1759121459541,-152.590465,0.00019337,2]
[388359794,1759121459551,-151.0,0.00019337,2]
[388359795,1759121459561,-151.0,0.00019337,2]
[388359796,1759121459570,-151.0,0.00019337,2]
[388359797,1759121459580,-151.0,0.00019337,2]
[388359798,1759121459589,-151.0,0.00019337,2]
[388359799,1759121459599,-151.0,0.00019337,2]
[388359800,1759121459609,-154.320975,0.00019337,2]
[388359801,1759121459619,-154.320975,0.00019337,2]
[388359802,1759121459629,-154.320975,0.00019337,2]
[388359803,1759121459640,-154.320975,0.00019337,2]
[388359804,1759121459650,-152.869365,0.00019337,2]
[388359805,1759121459659,-151.0,0.00019337,2]
[388359806,1759121459669,-911.35562488,0.00019351,2]
[388359807,1759121459679,-223.9978244,0.00019351,2]
[388359808,1759121459690,-1000.0,0.00019366,2]
[388359809,1759121459699,-242.0,0.0001938,2]
[388359810,1759121459709,-151.0,0.000194,2]
[388359811,1759121459719,-151.0,0.000194,2]
[388359812,1759121459728,-151.0,0.000194,2]
[388359813,1759121459742,-151.0,0.000194,2]
[388359814,1759121459752,-151.0,0.000194,2]
[388359815,1759121459761,-152.554788,0.000194,2]
[388359816,1759121459771,-151.0,0.000194,2]
[388359817,1759121459780,-151.0,0.000194,2]
[388359818,1759121459790,-151.0,0.000194,2]
[388359819,1759121459799,-157.027168,0.000194,2]
[388359820,1759121459810,-151.0,0.000194,2]
[388359821,1759121459820,-294.031267,0.000194,2]
[388359822,1759121459829,-254.214689,0.000194,2]
[388359823,1759121459840,-151.0,0.000194,2]
[388359824,1759121459849,-1200.0,0.000194,7]
[388359825,1759121459859,-3172.54074,0.000194,2]
[388359826,1759121459869,-3172.54074,0.000194,2]
[388359827,1759121459879,-3172.54074,0.000194,2]
[388359828,1759121459889,-3172.54074,0.000194,2]
[388359829,1759121459900,-429.865394,0.000194,2]
[388359830,1759121459910,-159.21001,0.000194,2]
[388359831,1759121459933,-482.968385,0.000194,2]
[388359832,1759121459944,-429.865394,0.000194,2]
[388359833,1759121459954,-159.21001,0.000194,2]
[388359834,1759121459965,-432.169124,0.000194,2]
[388359835,1759121459975,-429.865394,0.000194,2]
[388359836,1759121459985,-159.21001,0.000194,2]
[388359837,1759121459995,-482.968385,0.000194,2]
[388359838,1759121460005,-432.169124,0.000194,2]
[388359839,1759121460015,-429.865394,0.000194,2]
[388359840,1759121460024,-159.21001,0.000194,2]
[388359841,1759121460034,-482.968385,0.000194,2]
[388359842,1759121460044,-245.68,0.00019411,2]
[388359843,1759121460055,-7023.41,0.00019411,2]
[388359844,1759121460066,-15401.10447127,0.00019413,2]
[388359845,1759121460076,-245.773597,0.00019413,2]
[388359846,1759121460086,-245.773597,0.00019413,2]
[388359847,1759121460095,-407.786,0.00019413,2]
[388359848,1759121460106,-151.0,0.00019413,2]
[388359849,1759121460116,-245.773597,0.00019413,2]
[388359850,1759121460126,-407.786,0.00019413,2]
[388359851,1759121460135,-245.773597,0.00019413,2]
[388359852,1759121460145,-407.786,0.00019413,2]
[388359853,1759121460155,-407.786,0.00019413,2]
[388359854,1759121460165,-151.0,0.00019413,2]
[388359855,1759121460176,-151.0,0.00019413,2]
[388359856,1759121460186,-151.0,0.00019413,2]
[388359857,1759121460196,-151.0,0.00019413,2]
[388359858,1759121460206,-151.0,0.00019413,2]
[388359859,1759121460216,-151.0,0.00019413,2]
[388359860,1759121460226,-151.0,0.00019413,2]
[388359861,1759121460237,-151.0,0.00019413,2]
[388359862,1759121460248,-151.0,0.00019413,2]
[388359863,1759121460259,-152.951898,0.00019413,2]
[388359864,1759121460268,-4650.36425052,0.00019423,2]
[388359865,1759121460278,-151.0,0.00019433,2]
[388359866,1759121460287,-151.0,0.00019433,2]
[388359867,1759121460297,-151.0,0.00019433,2]
[388359868,1759121460313,-301.554417,0.00019433,2]
[388359869,1759121460323,-151.0,0.00019433,2]
[388359870,1759121460333,-151.0,0.00019433,2]
[388359871,1759121460344,-151.0,0.00019433,2]
[388359872,1759121460355,-151.0,0.00019433,2]
[388359873,1759121460365,-720.0,0.00019437,2]
[388359874,1759121460375,-223.9978244,0.00019443,2]
[388359875,1759121460385,-242.472586,0.00019443,2]
[388359876,1759121460395,-151.0,0.00019443,2]
[388359877,1759121460405,-151.0,0.00019443,2]
[388359878,1759121460415,-151.0,0.00019443,2]
[388359879,1759121460425,-151.0,0.00019443,2]
[388359880,1759121460435,-151.0,0.00019443,2]
[388359881,1759121460445,-151.0,0.00019443,2]
[388359882,1759121460455,-151.0,0.00019443,2]
[388359883,1759121460465,-904.202599,0.0001945,2]
[388359884,1759121460474,-151.0,0.0001945,2]
[388359885,1759121460484,-151.0,0.0001945,2]
[388359886,1759121460494,-151.0,0.0001945,2]
[388359887,1759121460503,-151.0,0.0001945,2]
[388359888,1759121460513,-151.0,0.0001945,2]
[388359889,1759121460523,-151.0,0.0001945,2]
[388359890,1759121460533,-904.202599,0.0001945,2]
[388359891,1759121460543,-151.0,0.0001945,2]
[388359892,1759121460553,-151.0,0.0001945,2]
[388359893,1759121460563,-904.202599,0.0001945,2]
[388359894,1759121460573,-151.0,0.0001945,2]
[388359895,1759121460583,-151.0,0.0001945,2]
[388359896,1759121460593,-151.0,0.0001945,2]
[388359897,1759121460603,-904.202599,0.0001945,2]
[388359898,1759121460613,-151.0,0.0001945,2]
[388359899,1759121460623,-170.673343,0.0001945,2]
[388359900,1759121460633,-151.0,0.0001945,2]
[388359901,1759121460643,-151.0,0.0001945,2]
[388359902,1759121460652,-151.0,0.0001945,2]
[388359903,1759121460662,-151.0,0.0001945,2]
[388359904,1759121460672,-292.012808,0.0001945,2]
[388359905,1759121460682,-156.122531,0.0001945,2]
[388359906,1759121460698,-156.122531,0.0001945,2]
[388359907,1759121460708,-156.122531,0.0001945,2]
[388359908,1759121460718,-156.122531,0.0001945,2]
[388359909,1759121460729,-2975.0,0.00019463,7]
[388359910,1759121460743,-151.0,0.00019463,2]
[388359911,1759121460753,-151.0,0.00019463,2]
[388359912,1759121460763,-151.0,0.00019463,2]
[388359913,1759121460774,-151.0,0.00019463,2]
[388359914,1759121460785,-151.0,0.00019463,2]
[388359915,1759121460795,-403.864663,0.00019463,2]
[388359916,1759121460806,-403.864663,0.00019463,2]
[388359917,1759121460816,-403.864663,0.00019463,2]
[388359918,1759121460827,-151.0,0.00019463,2]
[388359919,1759121460837,-403.864663,0.00019463,2]
[388359920,1759121460848,-151.0,0.00019463,2]
[388359921,1759121460858,-219.735799,0.00019463,2]
[388359922,1759121460867,-151.0,0.00019463,2]
[388359923,1759121460877,-151.0,0.00019463,2]
[388359924,1759121460887,-151.0,0.00019463,2]
[388359925,1759121460898,-151.0,0.00019463,2]
[388359926,1759121460908,-151.0,0.00019463,2]
[388359927,1759121460918,-183.042839,0.00019463,2]
[388359928,1759121460928,-183.042839,0.00019463,2]
[388359929,1759121460939,-183.042839,0.00019463,2]
[388359930,1759121460949,-183.042839,0.00019463,2]
[388359931,1759121460959,-151.0,0.00019463,2]
[388359932,1759121460969,-151.0,0.00019463,2]
[388359933,1759121460980,-156.791706,0.00019463,2]
[388359934,1759121460990,-156.791706,0.00019463,2]
[388359935,1759121461000,-156.791706,0.00019463,2]
[388359936,1759121461010,-156.791706,0.00019463,2]
[388359937,1759121461019,-246.858505,0.00019463,2]
[388359938,1759121461030,-351.72603931,0.00019463,2]
[388359939,1759121461998,-973.56100262,0.00019463,2]
[388359940,1759121462012,-479.8475744,0.00019463,2]
[388359941,1759121462025,-1679.94909332,0.00019463,2]
[388359942,1759121462036,-911.35562488,0.00019489,2]
[388359943,1759121462047,-188.90935335,0.00019489,2]
[388359944,1759121462058,-800.0,0.000195,2]
[388359945,1759121462069,-6355.4431599,0.000195,2]
[388359946,1759121462082,-447.44826,0.000195,2]
[388359947,1759121462158,-160.0,0.00019177,2]
[388359948,1759121462169,-1238.27564956,0.000195,2]
[388359949,1759121462187,-895.49449622,0.000195,2]
[388359950,1759121462200,-355.56112069,0.000195,2]
[388359951,1759121462230,-1266.64474171,0.000195,2]
[388359952,1759121466641,933.0,0.000245,30]
[388359953,1759121466690,-396.93837601,0.00019177,2]
[388359954,1759121466741,-35.23074799,0.00019177,2]
[388359955,1759121466752,-160.0,0.00019177,2]
[388359956,1759121466762,-289.05303407,0.00019177,2]
[388359957,1759121466785,-193.91535093,0.00019177,2]
[388359958,1759121466795,-160.0,0.00019177,2]
[388359959,1759121466807,-482.968385,0.00019177,2]
[388359960,1759121466817,-160.0,0.00019177,2]
[388359961,1759121466827,-482.968385,0.00019177,2]
[388359962,1759121466838,-432.169124,0.00019177,2]
[388359963,1759121466850,-160.0,0.00019177,2]
[388359964,1759121466861,-432.169124,0.00019177,2]
[388359965,1759121466872,-160.0,0.00019177,2]
[388359966,1759121466882,-432.169124,0.00019177,2]
[388359967,1759121466892,-160.0,0.00019177,2]
[388359968,1759121466902,-235.461669,0.00019177,2]
[388359969,1759121466913,-151.0,0.00019177,2]
[388359970,1759121466923,-160.0,0.00019177,2]
[388359971,1759121466934,-151.0,0.00019177,2]
[388359972,1759121466944,-160.0,0.00019177,2]
[388359973,1759121466955,-160.0,0.00019177,2]
[388359974,1759121466965,-151.0,0.00019177,2]
[388359975,1759121466975,-432.169124,0.000194,2]
[388359976,1759121466986,-482.968385,0.000194,2]
[388359977,1759121466996,-432.169124,0.000194,2]
[388359978,1759121467007,-3381.88078985,0.000195,2]
[388359979,1759121467020,-949.65,0.000195,2]
[388359980,1759121467032,-737.81325717,0.000195,2]
[388359981,1759121467108,-1123.71239335,0.000195,2]
[388359982,1759121467120,-20869.07613155,0.000195,2]
[388359983,1759121467130,-175.449245,0.000195,2]
[388359984,1759121467140,-161.042299,0.000195,2]
[388359985,1759121467151,-151.0,0.000195,2]
[388359986,1759121467162,-151.0,0.000195,2]
[388359987,1759121467173,-403.864663,0.000195,2]
[388359988,1759121467183,-403.864663,0.000195,2]
[388359989,1759121467194,-403.864663,0.000195,2]
[388359990,1759121467204,-151.0,0.000195,2]
[388359991,1759121467214,-403.864663,0.000195,2]
[388359992,1759121467224,-151.0,0.000195,2]
[388359993,1759121467234,-151.0,0.000195,2]
[388359994,1759121467245,-151.0,0.000195,2]
[388359995,1759121467254,-151.0,0.000195,2]
[388359996,1759121467264,-151.0,0.000195,2]
[388359997,1759121467274,-151.0,0.000195,2]
[388359998,1759121467284,-151.0,0.000195,2]
[388359999,1759121467302,-173.358727,0.000195,2]
[388360000,1759121467312,-151.0,0.000195,2]
[388360001,1759121467322,-151.0,0.000195,2]
[388360002,1759121467332,-151.0,0.000195,2]
[388360003,1759121467342,-273.485959,0.000195,2]
[388360004,1759121467353,-151.0,0.000195,2]
[388360005,1759121467365,-151.0,0.000195,2]
[388360006,1759121467375,-251.912171,0.000195,2]
[388360007,1759121467385,-154.320975,0.000195,2]
[388360008,1759121467395,-154.320975,0.000195,2]
[388360009,1759121467405,-154.320975,0.000195,2]
[388360010,1759121467416,-154.320977,0.000195,2]
[388360011,1759121467432,-200.0,0.000195,7]
[388360012,1759121467444,-151.0,0.000195,2]
[388360013,1759121467453,-720.0,0.00019506,2]
[388360014,1759121467464,-203.841144,0.00019508,2]
[388360015,1759121467475,-160.570024,0.00019508,2]
[388360016,1759121467485,-237.401276,0.00019508,2]
[388360017,1759121467495,-236.641302,0.00019508,2]
[388360018,1759121467506,-151.0,0.00019508,2]
[388360019,1759121467516,-1000.0,0.00019521,2]
[388360020,1759121467526,-151.0,0.00019521,2]
[388360021,1759121467537,-720.0,0.00019534,2]
[388360022,1759121467547,-161.351676,0.00019534,2]
[388360023,1759121467558,-183.042839,0.00019534,2]
[388360024,1759121467568,-183.042839,0.00019534,2]
[388360025,1759121467578,-183.042839,0.00019534,2]
[388360026,1759121467588,-183.042831,0.00019534,2]
[388360027,1759121467599,-151.0,0.00019534,2]
[388360028,1759121467610,-156.791706,0.00019534,2]
[388360029,1759121467620,-156.791706,0.00019534,2]
[388360030,1759121467630,-156.791706,0.00019534,2]
[388360031,1759121467641,-156.791714,0.00019534,2]
[388360032,1759121467651,-223.9978244,0.00019534,2]
[388360033,1759121467661,-5165.92096571,0.00019535,2]
[388360034,1759121467675,-553.7180093,0.00019535,2]
[388360035,1759121467745,-8672.28000571,0.00019535,2]
[388360036,1759121467758,-1009.18549055,0.00019535,2]
[388360037,1759121467768,-245.773597,0.00019535,2]
[388360038,1759121467780,-245.773597,0.00019535,2]
[388360039,1759121467790,-407.786,0.00019535,2]
[388360040,1759121467800,-169.066651,0.00019535,2]
[388360041,1759121467811,-245.773597,0.00019535,2]
[388360042,1759121467827,-407.786,0.00019535,2]
[388360043,1759121467838,-245.773598,0.00019535,2]
[388360044,1759121467848,-407.786,0.00019535,2]
[388360045,1759121467859,-407.785994,0.00019535,2]
[388360046,1759121467870,-151.0,0.00019535,2]
[388360047,1759121467880,-151.0,0.00019535,2]
[388360048,1759121467891,-168.974649,0.00019535,2]
[388360049,1759121467902,-151.0,0.00019535,2]
[388360050,1759121467913,-151.0,0.00019535,2]
[388360051,1759121467925,-151.0,0.00019535,2]
[388360052,1759121467935,-71.34402645,0.00019535,2]
[388360053,1759121468026,-160.0,0.00019177,2]
[388360054,1759121468038,-121.64667155,0.00019535,2]
[388360055,1759121468048,-151.0,0.00019535,2]
[388360056,1759121468059,-4365.75141062,0.00019538,2]
[388360057,1759121468071,-1000.0,0.00019568,2]
[388360058,1759121468082,-248.71531821,0.00019586,2]
[388360059,1759121468094,-156.039131,0.00019589,2]
[388360060,1759121468106,-151.0,0.00019589,2]
[388360061,1759121468117,-151.0,0.00019589,2]
[388360062,1759121468129,-151.0,0.00019589,2]
[388360063,1759121468139,-151.0,0.00019589,2]
[388360064,1759121468151,-151.0,0.00019589,2]
[388360065,1759121468162,-233.194116,0.00019589,2]
[388360066,1759121468173,-389.0192388,0.0001959,2]
[388360067,1759121468186,-200.0,0.000196,7]
[388360068,1759121468198,-180.0,0.000196,2]
[388360069,1759121468209,-172.88,0.00019606,2]
[388360070,1759121468220,-911.35562488,0.00019626,2]
[388360071,1759121468231,-223.9978244,0.00019626,2]
[388360072,1759121468243,-151.0,0.00019626,2]
[388360073,1759121468253,-3172.54074,0.00019656,2]
[388360074,1759121468264,-3172.54074,0.00019656,2]
[388360075,1759121468275,-3172.54074,0.00019656,2]
[388360076,1759121468286,-3172.540737,0.00019656,2]
[388360077,1759121468296,-429.865394,0.00019656,2]
[388360078,1759121468306,-159.21001,0.00019656,2]
[388360079,1759121468316,-429.865394,0.00019656,2]
[388360080,1759121468327,-482.968385,0.00019656,2]
[388360081,1759121468338,-159.21001,0.00019656,2]
[388360082,1759121468348,-432.169124,0.00019656,2]
[388360083,1759121468358,-429.865394,0.00019656,2]
[388360084,1759121468369,-159.21001,0.00019656,2]
[388360085,1759121468380,-482.968385,0.00019656,2]
[388360086,1759121468390,-432.169124,0.00019656,2]
[388360087,1759121468400,-429.865395,0.00019656,2]
[388360088,1759121468411,-159.210013,0.00019656,2]
[388360089,1759121468421,-482.968385,0.00019656,2]
[388360090,1759121468432,-432.169124,0.00019656,2]
[388360091,1759121468442,-482.96839,0.00019656,2]
[388360092,1759121468452,-432.169119,0.00019656,2]
[388360093,1759121468461,-15401.10447127,0.00019656,2]
[388360094,1759121468472,-245.7,0.00019685,2]
[388360095,1759121468482,-2974.36135355,0.00019685,2]
[388360096,1759121468495,-284.68328364,0.00019685,2]
[388360097,1759121468563,-3764.36536281,0.00019685,2]
[388360098,1759121468573,-168.0,0.00019698,2]
[388360099,1759121468584,-1129.13916319,0.000197,2]
[388360101,1759121474157,500.0,0.000245,30]
[388360102,1759121500494,776.0,0.000245,30]
[388360103,1759121507501,4181.0,0.000245,30]
[388360104,1759121528651,150.0,0.000245,30]
[388360106,1759121654237,500.0,0.000245,30]
[388360107,1759121663300,150.0,0.000245,30]
[388360108,1759121664327,150.0,0.000245,30]
[388360109,1759121673733,150.0,0.000245,30]
[388360110,1759121846237,150.0,0.000245,30]
[388360111,1759121848557,872.0,0.000245,30]
[388360112,1759121857567,500.0,0.000245,30]
[388360113,1759121861084,894.0,0.000245,30]
[388360114,1759121867439,500.0,0.000245,30]
[388360115,1759121899401,150.0,0.000245,30]
[388360116,1759121900429,500.0,0.000245,30]
[388360117,1759121902126,500.0,0.000245,30]
[388360120,1759121972124,500.0,0.000245,30]
[388360121,1759121977596,150.0,0.000245,30]
[388360122,1759122032094,500.0,0.000245,30]
[388360123,1759122034300,151.09,8.91e-05,2]
[388360124,1759122034617,151.09,9.801e-05,2]
[388360125,1759122034782,151.09,0.00010692,2]
[388360126,1759122035054,151.09,0.00011583,2]
[388360127,1759122035245,151.09,0.00012474,2]
[388360128,1759122035469,151.09,0.00013365,2]
[388360129,1759122035768,151.09,0.00014256,2]
[388360130,1759122037056,150.0,0.000245,30]
[388360131,1759122048958,150.0,0.000245,30]
[388360132,1759122146654,500.0,0.000245,30]
[388360133,1759122148563,744.0,0.000245,30]
[388360134,1759122154182,4007.0,0.000245,30]
[388360135,1759122167311,150.0,0.000245,30]
[388360136,1759122246338,280.5293174,0.000245,30]
[388360137,1759122248200,836.0,0.000245,30]
[388360138,1759122250434,-151.09,0.00015147,2]
[388360139,1759122250472,-151.09,0.00016038,2]
[388360140,1759122250508,-195.0,0.00016662,2]
[388360141,1759122252859,-151.09,0.00016662,2]
[388360142,1759122252913,-151.09,0.00016662,2]
[388360143,1759122252928,-195.0,0.00016662,2]
[388360144,1759122252949,-2.82,0.00016662,2]
[388360145,1759122252959,-2.82,0.00016662,2]
[388360146,1759122258848,500.0,0.000245,30]
[388360147,1759122267064,857.0,0.000245,30]
[388360148,1759122268419,1000.0,0.000255,120]
[388360149,1759122274294,500.0,0.000245,30]
[388360150,1759122311416,1628.0,8.1e-05,2]
[388360151,1759122311674,500.0,0.000245,30]
[388360152,1759122315632,500.0,0.000245,30]
[388360153,1759122320044,150.0,0.000245,30]
[388360154,1759122321053,150.0,0.000245,30]
[388360155,1759122331306,150.0,0.000245,30]
[388360156,1759122332534,237.0,8.1e-05,2]
[388360157,1759122362690,2000.0,0.000255,120]
[388360158,1759122483772,-152.0,0.00016662,2]
[388360159,1759122502446,500.0,0.000245,30]
[388360160,1759122503822,713.0,0.000245,30]
[388360161,1759122504097,-152.0,0.00016662,2]
[388360162,1759122514073,150.0,0.000245,30]
[388360163,1759122515483,500.0,0.000245,30]
[388360164,1759122519825,200.88483539,0.000245,30]
[388360165,1759122524138,847.0,0.000245,30]
[388360166,1759122542460,567.0,0.000245,30]
[388360167,1759122546817,500.0,0.000245,30]
[388360168,1759122551774,184.62992966,0.000245,30]
[388360169,1759122556095,-152.0,0.00016662,2]
[388360170,1759122561842,163.34110407,0.000245,30]
[388360172,1759122593968,-41.18,0.00016662,2]
[388360173,1759122593994,-110.82,0.00016662,2]
[388360175,1759122617117,500.0,0.000245,30]
[388360176,1759122621751,150.0,0.000245,30]
[388360209,1759122634596,-152.0,0.00016665,3]
[388360210,1759122634606,-1919.0,0.000167,2]
[388360211,1759122634616,-151.09,0.00016929,2]
[388360212,1759122634626,-2783.48238969,0.00017722,2]
[388360213,1759122634635,-474.44399431,0.00017722,2]
[388360214,1759122634647,-151.09,0.0001782,2]
[388360215,1759122634656,-243.0,0.00018,2]
[388360216,1759122634666,-340.59,0.00018021,2]
[388360217,1759122634676,-1200.0,0.00018197,2]
[388360218,1759122634686,-300.0,0.00018197,2]
[388360219,1759122634696,-1000.0,0.00018198,2]
[388360220,1759122634705,-247.66319361,0.00018199,2]
[388360221,1759122634715,-412.97,0.000182,2]
[388360222,1759122634727,-412.97,0.000182,2]
[388360223,1759122634737,-412.97,0.000182,2]
[388360224,1759122634746,-412.97,0.000182,2]
[388360225,1759122634756,-412.97,0.000182,2]
[388360226,1759122634766,-825.94,0.000182,2]
[388360227,1759122634776,-825.94,0.000182,2]
[388360228,1759122634786,-825.94,0.000182,2]
[388360229,1759122634795,-825.94,0.000182,2]
[388360230,1759122634805,-825.94,0.000182,2]
[388360231,1759122634815,-336.32,0.00018208,2]
[388360232,1759122634825,-152.0,0.00018256,4]
[388360233,1759122634835,-151.09,0.00018328,2]
[388360234,1759122634844,-668.65185757,0.00018345,2]
[388360235,1759122634854,-3860.68,0.00018356,2]
[388360236,1759122634863,-300.0,0.00018365,2]
[388360237,1759122634873,-603.0,0.0001839,2]
[388360238,1759122634882,-814.0,0.0001839,2]
[388360239,1759122634892,-9213.66157083,0.00018453,2]
[388360240,1759122634901,-437.45742864,0.00018455,2]
[388360241,1759122634911,-16610.3394525,0.00018458,2]
[388360242,1759122635018,-553.85299994,0.00018458,2]
[388360243,1759122635105,-853.3485474,0.00018458,2]
[388360756,1759122643341,-693.48215818,0.00018458,2]
[388360765,1759122643387,-2240.0,0.00018458,2]
[388360803,1759122643749,-1121.2,0.00018458,2]
[388360973,1759122645579,-3174.59259353,0.00018458,2]
[388360975,1759122645591,-11769.90985667,0.00018458,2]
[388360982,1759122645646,-2032.67164072,0.00018458,2]
[388360985,1759122645657,-5204.242646,0.00018458,2]
[388360995,1759122645747,-38416.85613206,0.00018458,2]
[388360997,1759122645758,-19626.70159845,0.00018459,2]
[388360999,1759122645767,-9213.66157083,0.00018471,2]
[388361001,1759122645777,-1727.94416158,0.00018472,2]
[388361003,1759122645787,-1727.94416158,0.00018473,2]
[388361005,1759122645796,-19626.70159845,0.00018473,2]
[388361007,1759122645806,-437.45742864,0.00018474,2]
[388361009,1759122645815,-3441.13246042,0.00018474,2]
[388361011,1759122645824,-82670.496027,0.0001848,2]
[388361013,1759122645834,-19626.70159845,0.00018482,2]
[388361015,1759122645843,-437.45742864,0.00018484,2]
[388361017,1759122645854,-7116.91057428,0.00018489,2]